fUSD/lending_fUSD_20250205
["ID","MTS","AMOUNT","RATE_DAILY","PERIOD"]
[351699843,1738756241568,-511.94,8.835e-05,2]
[351699844,1738756241578,-500.0,8.835e-05,2]
[351699845,1738756241589,-500.0,8.835e-05,2]
[351699846,1738756241599,-500.0,8.835e-05,2]
[351699847,1738756241608,-500.0,8.835e-05,2]
[351699848,1738756241618,-500.0,8.835e-05,2]
[351699849,1738756241627,-500.67337626,8.835e-05,2]
[351699850,1738756241638,-500.0,8.835e-05,2]
[351699851,1738756241648,-500.0,8.835e-05,2]
[351699852,1738756241658,-500.0,8.835e-05,2]
[351699853,1738756241668,-500.0,8.835e-05,2]
[351699854,1738756241677,-502.79124908,8.835e-05,2]
[351699855,1738756241689,-500.0,8.835e-05,2]
[351699856,1738756241698,-500.0,8.835e-05,2]
[351699857,1738756241707,-500.0,8.835e-05,2]
[351699858,1738756241717,-500.0,8.835e-05,2]
[351699859,1738756241726,-100.71597835,8.835e-05,2]
[351699860,1738756242040,-549.01679421,8.835e-05,2]
[351699861,1738756242052,-502.14977176,8.835e-05,2]
[351699862,1738756242065,-500.0,8.835e-05,2]
[351699863,1738756242077,-500.0,8.835e-05,2]
[351699864,1738756242089,-500.0,8.835e-05,2]
[351699865,1738756242101,-500.0,8.835e-05,2]
[351699866,1738756242113,-916.95658,8.835e-05,2]
[351699867,1738756242126,-500.0,8.835e-05,2]
[351699868,1738756242137,-504.44397131,8.835e-05,2]
[351699869,1738756242149,-617.1,8.835e-05,2]
[351699870,1738756242161,-500.0,8.835e-05,2]
[351699871,1738756242171,-500.0,8.835e-05,2]
[351699872,1738756242184,-500.0,8.835e-05,2]
[351699873,1738756242195,-222.012851,8.835e-05,2]
[351699874,1738756242206,-500.0,8.835e-05,2]
[351699875,1738756242218,-500.0,8.835e-05,2]
[351699876,1738756242229,-500.0,8.835e-05,2]
[351699877,1738756242241,-500.0,8.835e-05,2]
[351699878,1738756242254,-501.65833029,8.835e-05,2]
[351699879,1738756242265,-500.0,8.835e-05,2]
[351699880,1738756242279,-500.0,8.835e-05,2]
[351699881,1738756242291,-478.65849236,8.835e-05,2]
[351699882,1738756242303,-21.34150764,8.835e-05,2]
[351699883,1738756242313,-500.0,8.835e-05,2]
[351699884,1738756242323,-500.0,8.835e-05,2]
[351699885,1738756242334,-500.0,8.835e-05,2]
[351699886,1738756242346,-500.0,8.835e-05,2]
[351699887,1738756242359,-500.0,8.835e-05,2]
[351699888,1738756242372,-500.0,8.835e-05,2]
[351699889,1738756242383,-500.0,8.835e-05,2]
[351699890,1738756242393,-500.0,8.835e-05,2]
[351699891,1738756242403,-502.56179577,8.835e-05,2]
[351699892,1738756242413,-500.0,8.835e-05,2]
[351699893,1738756242423,-502.30748172,8.835e-05,2]
[351699894,1738756242434,-541.42143647,8.835e-05,2]
[351699895,1738756242445,-2142.85453786,8.836e-05,2]
[351699896,1738756242471,-544.38170658,8.836e-05,2]
[351699898,1738756242679,-490.49,8.836e-05,2]
[351699899,1738756242700,-915.17369527,8.836e-05,2]
[351699900,1738756243069,-502.61283617,8.835e-05,2]
[351699902,1738756243080,-149.90703183,8.835e-05,2]
[351699937,1738756245899,-350.09296817,8.835e-05,2]
[351699938,1738756245908,-500.0,8.835e-05,2]
[351699939,1738756245918,-500.0,8.835e-05,2]
[351699940,1738756245928,-500.77608931,8.835e-05,2]
[351699941,1738756245937,-500.0,8.835e-05,2]
[351699942,1738756245948,-4400.92396029,8.836e-05,2]
[351699943,1738756245959,-500.0,8.851e-05,2]
[351699944,1738756245968,-1000.0,8.851e-05,2]
[351699945,1738756245978,-813.35,8.864e-05,2]
[351699946,1738756245987,-9999.99,8.864e-05,2]
[351699947,1738756245997,-1521.13,8.864e-05,2]
[351699948,1738756246007,-150.99,8.864e-05,2]
[351699949,1738756246016,-328.92,8.864e-05,2]
[351699950,1738756246026,-9999.99,8.864e-05,2]
[351699951,1738756246035,-3564.03,8.864e-05,2]
[351699961,1738756246340,-9999.99,8.864e-05,2]
[351699964,1738756246361,-473.0,8.864e-05,2]
[351699966,1738756246373,-999.99,8.864e-05,2]
[351699968,1738756246383,-150.99,8.864e-05,2]
[351699970,1738756246392,-5917.92802881,8.864e-05,2]
[351699972,1738756246430,-1097.79197119,8.864e-05,2]
[351699973,1738756246440,-544.61998981,8.864e-05,2]
[351699974,1738756246451,-2019.65001019,8.864e-05,2]
[351699975,1738756246461,-265.51,8.864e-05,2]
[351699976,1738756246471,-299.99,8.864e-05,2]
[351699977,1738756246480,-651.48998981,8.864e-05,2]
[351699978,1738756246491,-414.86736611,8.864e-05,2]
[351700001,1738756686169,20024.58976,0.0001,10]
[351700007,1738757143168,500.0,7.988e-05,2]
[351700008,1738757156673,579.6,7.988e-05,2]
[351700056,1738757432061,-474.82116813,8.071e-05,2]
[351700057,1738757432167,-258.80883187,8.071e-05,2]
[351700058,1738757432177,-62.10170818,8.071e-05,2]
[351700059,1738757432327,-437.89829182,8.071e-05,2]
[351700060,1738757432337,-319.99170868,8.071e-05,2]
[351700061,1738757432350,-180.00829132,8.071e-05,2]
[351700062,1738757432362,-330.66618968,8.071e-05,2]
[351700063,1738757432375,-169.33381032,8.071e-05,2]
[351700065,1738757432385,-300.0,8.078e-05,2]
[351700066,1738757432394,-422.72374968,8.078e-05,2]
[351700069,1738757432406,-428.49557643,8.078e-05,2]
[351700071,1738757432418,-268.24898292,8.078e-05,2]
[351700179,1738757437807,-21113.30169097,8.078e-05,2]
[351700180,1738757437817,-500.58,8.082e-05,2]
[351700181,1738757437827,-194.56,8.175e-05,2]
[351700182,1738757437836,-150.0,8.218e-05,2]
[351700184,1738757437845,-920.03,8.219e-05,2]
[351700186,1738757437855,-168.37,8.219e-05,2]
[351700187,1738757437865,-250.0,8.219e-05,2]
[351700188,1738757437875,-1000.0,8.219e-05,2]
[351700189,1738757438102,-1471.91,8.219e-05,2]
[351700190,1738757438112,-500.0,8.22e-05,2]
[351700191,1738757438122,-6603.1753979,8.831e-05,2]
[351700192,1738757438132,-372.67,8.835e-05,2]
[351700193,1738757438141,-500.0,8.835e-05,2]
[351700194,1738757438151,-245.62,8.835e-05,2]
[351700195,1738757438160,-500.0,8.835e-05,2]
[351700196,1738757438170,-500.0,8.835e-05,2]
[351700197,1738757438179,-500.0,8.835e-05,2]
[351700198,1738757438189,-500.0,8.835e-05,2]
[351700199,1738757438198,-500.0,8.835e-05,2]
[351700200,1738757438208,-500.0,8.835e-05,2]
[351700201,1738757438217,-500.0,8.835e-05,2]
[351700202,1738757438227,-500.0,8.835e-05,2]
[351700203,1738757438237,-500.0,8.835e-05,2]
[351700204,1738757438247,-500.0,8.835e-05,2]
[351700205,1738757438256,-500.0,8.835e-05,2]
[351700206,1738757438266,-500.0,8.835e-05,2]
[351700207,1738757438277,-207.26,8.835e-05,2]
[351700208,1738757438287,-500.0,8.835e-05,2]
[351700209,1738757438297,-500.0,8.835e-05,2]
[351700210,1738757438308,-500.0,8.835e-05,2]
[351700211,1738757438318,-500.0,8.835e-05,2]
[351700212,1738757438327,-500.0,8.835e-05,2]
[351700213,1738757438337,-503.83015779,8.835e-05,2]
[351700214,1738757438347,-500.0,8.835e-05,2]
[351700215,1738757438358,-500.0,8.835e-05,2]
[351700216,1738757438368,-500.0,8.835e-05,2]
[351700217,1738757438377,-500.0,8.835e-05,2]
[351700218,1738757438387,-500.0,8.835e-05,2]
[351700219,1738757438397,-500.0,8.835e-05,2]
[351700220,1738757438406,-182.99,8.835e-05,2]
[351700221,1738757438422,-500.0,8.835e-05,2]
[351700222,1738757438432,-500.0,8.835e-05,2]
[351700224,1738757438441,-520.35,8.835e-05,2]
[351700225,1738757438451,-500.0,8.835e-05,2]
[351700228,1738757438461,-500.0,8.835e-05,2]
[351700230,1738757438471,-500.0,8.835e-05,2]
[351700231,1738757438480,-500.0,8.835e-05,2]
[351700233,1738757438489,-500.0,8.835e-05,2]
[351700235,1738757438499,-500.0,8.835e-05,2]
[351700237,1738757438508,-589.4,8.835e-05,2]
[351700239,1738757438517,-500.0,8.835e-05,2]
[351700241,1738757438527,-575.38,8.835e-05,2]
[351700243,1738757438536,-500.0,8.835e-05,2]
[351700245,1738757438546,-466.46,8.835e-05,2]
[351700247,1738757438555,-500.0,8.835e-05,2]
[351700249,1738757438564,-500.0,8.835e-05,2]
[351700251,1738757438574,-500.0,8.835e-05,2]
[351700254,1738757438583,-500.0,8.835e-05,2]
[351700256,1738757438592,-500.0,8.835e-05,2]
[351700258,1738757438602,-566.07,8.835e-05,2]
[351700260,1738757438611,-608.76,8.835e-05,2]
[351700262,1738757438620,-500.0,8.835e-05,2]
[351700265,1738757438630,-500.0,8.835e-05,2]
[351700268,1738757438639,-500.0,8.835e-05,2]
[351700270,1738757438650,-265.32,8.835e-05,2]
[351700271,1738757438659,-500.0,8.835e-05,2]
[351700273,1738757438668,-85004.7,8.835e-05,2]
[351700275,1738757438677,-8122.61,8.835e-05,2]
[351700277,1738757438686,-3076.26,8.835e-05,2]
[351700279,1738757438696,-293.2447,8.836e-05,2]
[351700281,1738757438705,-150.99,8.836e-05,2]
[351700283,1738757438715,-1253.3992,8.836e-05,2]
[351700285,1738757438723,-9278.91,8.836e-05,2]
[351700287,1738757438733,-173.19,8.911e-05,2]
[351700289,1738757438743,-150.0,8.92e-05,2]
[351700291,1738757438753,-2019.29,8.92e-05,2]
[351700293,1738757438762,-150.0,8.92e-05,2]
[351700295,1738757438771,-439.5,8.92e-05,2]
[351700297,1738757438780,-299.29,8.92e-05,2]
[351700299,1738757438789,-774.8,8.92e-05,2]
[351700301,1738757438799,-438.59,8.92e-05,2]
[351700303,1738757438809,-282.36,8.92e-05,2]
[351700305,1738757438818,-150.0,8.92e-05,2]
[351700307,1738757438827,-439.5,8.92e-05,2]
[351700309,1738757438837,-438.59,8.92e-05,2]
[351700311,1738757438846,-774.8,8.92e-05,2]
[351700313,1738757438856,-150.0,8.92e-05,2]
[351700315,1738757438865,-438.59,8.92e-05,2]
[351700317,1738757438875,-774.8,8.92e-05,2]
[351700319,1738757438885,-439.5,8.92e-05,2]
[351700321,1738757438899,-150.0,8.92e-05,2]
[351700323,1738757438908,-150.0,8.92e-05,2]
[351700325,1738757438917,-295.74,8.92e-05,2]
[351700327,1738757438927,-155.534578,8.933e-05,2]
[351700329,1738757438938,-500.0,8.933e-05,2]
[351700331,1738757438947,-2040.789686,8.933e-05,2]
[351700333,1738757438957,-500.0,8.933e-05,2]
[351700335,1738757438966,-500.0,8.933e-05,2]
[351700337,1738757438976,-500.0,8.933e-05,2]
[351700339,1738757438986,-1151.6538,8.933e-05,2]
[351700341,1738757438995,-500.0,8.933e-05,2]
[351700343,1738757439005,-500.0,8.933e-05,2]
[351700345,1738757439014,-500.0,8.933e-05,2]
[351700347,1738757439023,-500.0,8.933e-05,2]
[351700349,1738757439032,-212.762316,8.933e-05,2]
[351700351,1738757439042,-500.0,8.933e-05,2]
[351700353,1738757439051,-1165.73,8.933e-05,2]
[351700355,1738757439062,-500.0,8.933e-05,2]
[351700357,1738757439071,-550.95,8.933e-05,2]
[351700359,1738757439081,-500.0,8.933e-05,2]
[351700362,1738757439090,-500.0,8.933e-05,2]
[351700364,1738757439101,-500.0,8.933e-05,2]
[351700366,1738757439110,-500.0,8.933e-05,2]
[351700367,1738757439119,-500.0,8.933e-05,2]
[351700370,1738757439129,-500.0,8.933e-05,2]
[351700372,1738757439138,-500.0,8.933e-05,2]
[351700373,1738757439148,-500.0,8.933e-05,2]
[351700375,1738757439157,-500.0,8.933e-05,2]
[351700377,1738757439167,-500.0,8.933e-05,2]
[351700380,1738757439176,-500.0,8.933e-05,2]
[351700381,1738757439186,-500.0,8.933e-05,2]
[351700383,1738757439195,-500.0,8.933e-05,2]
[351700385,1738757439206,-500.0,8.933e-05,2]
[351700387,1738757439215,-500.0,8.933e-05,2]
[351700389,1738757439225,-500.0,8.933e-05,2]
[351700392,1738757439237,-500.0,8.933e-05,2]
[351700394,1738757439246,-500.0,8.933e-05,2]
[351700396,1738757439256,-500.0,8.933e-05,2]
[351700397,1738757439266,-500.0,8.933e-05,2]
[351700400,1738757439276,-500.0,8.933e-05,2]
[351700402,1738757439286,-165.88847334,8.933e-05,2]
[351700406,1738757439316,-334.11152666,8.933e-05,2]
[351700408,1738757439326,-500.0,8.933e-05,2]
[351700410,1738757439335,-500.0,8.933e-05,2]
[351700412,1738757439344,-500.0,8.933e-05,2]
[351700414,1738757439354,-29.173775,8.933e-05,2]
[351700419,1738757439401,-470.826225,8.933e-05,2]
[351700421,1738757439411,-500.0,8.933e-05,2]
[351700423,1738757439420,-500.0,8.933e-05,2]
[351700425,1738757439430,-500.0,8.933e-05,2]
[351700427,1738757439439,-500.0,8.933e-05,2]
[351700429,1738757439448,-500.0,8.933e-05,2]
[351700431,1738757439458,-500.0,8.933e-05,2]
[351700433,1738757439468,-500.0,8.933e-05,2]
[351700435,1738757439477,-500.0,8.933e-05,2]
[351700437,1738757439487,-500.0,8.933e-05,2]
[351700439,1738757439497,-500.0,8.933e-05,2]
[351700441,1738757439507,-500.0,8.933e-05,2]
[351700443,1738757439516,-500.0,8.933e-05,2]
[351700446,1738757439526,-500.0,8.933e-05,2]
[351700447,1738757439535,-500.0,8.933e-05,2]
[351700449,1738757439544,-500.0,8.933e-05,2]
[351700451,1738757439555,-500.0,8.933e-05,2]
[351700453,1738757439565,-500.0,8.933e-05,2]
[351700455,1738757439575,-500.0,8.933e-05,2]
[351700457,1738757439585,-500.0,8.933e-05,2]
[351700459,1738757439595,-500.0,8.933e-05,2]
[351700461,1738757439605,-500.0,8.933e-05,2]
[351700463,1738757439614,-500.0,8.933e-05,2]
[351700465,1738757439624,-500.0,8.933e-05,2]
[351700467,1738757439633,-500.0,8.933e-05,2]
[351700470,1738757439643,-500.0,8.933e-05,2]
[351700471,1738757439653,-500.0,8.933e-05,2]
[351700474,1738757439663,-500.0,8.933e-05,2]
[351700476,1738757439676,-604.02,8.933e-05,2]
[351700478,1738757439696,-500.0,8.933e-05,2]
[351700480,1738757439710,-500.0,8.933e-05,2]
[351700482,1738757439720,-222.82889275,8.933e-05,2]
[351700484,1738757439729,-500.0,8.933e-05,2]
[351700487,1738757439740,-561.68,8.933e-05,2]
[351700489,1738757439750,-500.0,8.933e-05,2]
[351700490,1738757439759,-500.0,8.933e-05,2]
[351700492,1738757439771,-281.79,8.933e-05,2]
[351700494,1738757439789,-500.0,8.933e-05,2]
[351700496,1738757439799,-500.0,8.933e-05,2]
[351700498,1738757439809,-500.0,8.933e-05,2]
[351700500,1738757439818,-307.00924844,8.933e-05,2]
[351700539,1738757440129,-192.99075156,8.933e-05,2]
[351700541,1738757440139,-500.0,8.933e-05,2]
[351700543,1738757440150,-500.0,8.933e-05,2]
[351700545,1738757440159,-500.0,8.933e-05,2]
[351700547,1738757440169,-500.0,8.933e-05,2]
[351700549,1738757440178,-500.0,8.933e-05,2]
[351700551,1738757440188,-252.31924844,8.933e-05,2]
[351700553,1738757440200,-263.70754317,8.933e-05,2]
[351700555,1738757440210,-500.0,8.933e-05,2]
[351700557,1738757440218,-500.0,8.933e-05,2]
[351700559,1738757440228,-500.0,8.933e-05,2]
[351700561,1738757440237,-55.47475549,8.933e-05,2]
[351700563,1738757440249,-444.52524451,8.933e-05,2]
[351700565,1738757440258,-500.0,8.933e-05,2]
[351700567,1738757440274,-40.11098319,8.933e-05,2]
[351700569,1738757440287,-299.46567977,8.933e-05,2]
[351700571,1738757440299,-160.42333704,8.933e-05,2]
[351700573,1738757440309,-500.0,8.933e-05,2]
[351700576,1738757440319,-500.0,8.933e-05,2]
[351700578,1738757440329,-46.49442669,8.933e-05,2]
[351700581,1738757440350,-453.50557331,8.933e-05,2]
[351700583,1738757440360,-500.0,8.933e-05,2]
[351700585,1738757440369,-500.0,8.933e-05,2]
[351700587,1738757440379,-500.0,8.933e-05,2]
[351700589,1738757440388,-500.0,8.933e-05,2]
[351700590,1738757440397,-500.0,8.933e-05,2]
[351700592,1738757440407,-500.0,8.933e-05,2]
[351700594,1738757440417,-500.0,8.933e-05,2]
[351700596,1738757440426,-500.0,8.933e-05,2]
[351700598,1738757440436,-500.0,8.933e-05,2]
[351700600,1738757440445,-500.0,8.933e-05,2]
[351700603,1738757440456,-500.0,8.933e-05,2]
[351700605,1738757440466,-500.0,8.933e-05,2]
[351700607,1738757440476,-500.0,8.933e-05,2]
[351700609,1738757440485,-500.0,8.933e-05,2]
[351700610,1738757440494,-500.0,8.933e-05,2]
[351700612,1738757440503,-500.0,8.933e-05,2]
[351700614,1738757440513,-500.0,8.933e-05,2]
[351700616,1738757440523,-500.0,8.933e-05,2]
[351700619,1738757440533,-500.0,8.933e-05,2]
[351700621,1738757440543,-136.67067863,8.933e-05,2]
[351700623,1738757440556,-254.76325372,8.933e-05,2]
[351700625,1738757440565,-500.0,8.933e-05,2]
[351700627,1738757440574,-97.46570494,8.933e-05,2]
[351700877,1738757443016,-500.0,8.933e-05,2]
[351700879,1738757443026,-500.0,8.933e-05,2]
[351700881,1738757443035,-500.0,8.933e-05,2]
[351700883,1738757443045,-402.53429506,8.933e-05,2]
[351700885,1738757443055,-500.0,8.934e-05,2]
[351700887,1738757443065,-500.0,8.934e-05,2]
[351700889,1738757443075,-500.0,8.934e-05,2]
[351700891,1738757443084,-647.24243988,8.934e-05,2]
[351700893,1738757443094,-500.0,8.934e-05,2]
[351700895,1738757443104,-629.66065338,8.934e-05,2]
[351700897,1738757443113,-500.0,8.934e-05,2]
[351700899,1738757443123,-364.9,8.934e-05,2]
[351700901,1738757443132,-500.0,8.934e-05,2]
[351700903,1738757443141,-500.0,8.934e-05,2]
[351700905,1738757443151,-500.0,8.934e-05,2]
[351700908,1738757443160,-500.0,8.934e-05,2]
[351700909,1738757443170,-503.58299907,8.934e-05,2]
[351700911,1738757443180,-500.0,8.934e-05,2]
[351700912,1738757443190,-158.169403,8.934e-05,2]
[351700913,1738757443199,-540.17888746,8.934e-05,2]
[351700914,1738757443209,-508.93906571,8.934e-05,2]
[351700915,1738757443218,-500.0,8.934e-05,2]
[351700916,1738757443227,-500.0,8.934e-05,2]
[351700917,1738757443237,-637.42646896,8.934e-05,2]
[351700918,1738757443246,-509.0476032,8.934e-05,2]
[351700919,1738757443256,-500.0,8.934e-05,2]
[351700920,1738757443266,-500.54720796,8.934e-05,2]
[351700921,1738757443275,-504.02395368,8.934e-05,2]
[351700922,1738757443285,-500.0,8.934e-05,2]
[351700923,1738757443295,-500.0,8.934e-05,2]
[351700924,1738757443306,-500.0,8.934e-05,2]
[351700925,1738757443315,-348.50274707,8.934e-05,2]
[351700926,1738757443324,-500.0,8.934e-05,2]
[351700927,1738757443334,-500.0,8.934e-05,2]
[351700928,1738757443343,-288.56609044,8.934e-05,2]
[351700929,1738757443353,-500.0,8.934e-05,2]
[351700930,1738757443363,-503.03545293,8.934e-05,2]
[351700931,1738757443373,-500.0,8.934e-05,2]
[351700932,1738757443383,-501.66175206,8.934e-05,2]
[351700933,1738757443393,-504.14432189,8.934e-05,2]
[351700934,1738757443403,-500.0,8.934e-05,2]
[351700935,1738757443413,-500.0,8.934e-05,2]
[351700936,1738757443422,-500.0,8.934e-05,2]
[351700937,1738757443433,-521.16,8.934e-05,2]
[351700938,1738757443443,-500.0,8.934e-05,2]
[351700939,1738757443453,-500.0,8.934e-05,2]
[351700940,1738757443463,-500.0,8.934e-05,2]
[351700941,1738757443473,-500.0,8.934e-05,2]
[351700942,1738757443483,-500.0,8.934e-05,2]
[351700943,1738757443493,-500.6227703,8.934e-05,2]
[351700944,1738757443503,-503.06547523,8.934e-05,2]
[351700945,1738757443512,-501.31738012,8.934e-05,2]
[351700946,1738757443522,-500.0,8.934e-05,2]
[351700947,1738757443532,-500.0,8.934e-05,2]
[351700948,1738757443542,-500.0,8.934e-05,2]
[351700949,1738757443552,-502.5681043,8.934e-05,2]
[351700950,1738757443562,-502.13764172,8.934e-05,2]
[351700951,1738757443571,-502.05007576,8.934e-05,2]
[351700952,1738757443582,-500.0,8.934e-05,2]
[351700953,1738757443591,-500.0,8.934e-05,2]
[351700955,1738757443601,-513.26827337,8.934e-05,2]
[351700956,1738757443611,-500.0,8.934e-05,2]
[351700958,1738757443620,-593.87,8.934e-05,2]
[351700960,1738757443629,-500.0,8.934e-05,2]
[351700962,1738757443639,-500.0,8.934e-05,2]
[351700963,1738757443648,-500.0,8.934e-05,2]
[351700965,1738757443659,-500.0,8.934e-05,2]
[351700967,1738757443668,-500.0,8.934e-05,2]
[351700969,1738757443678,-501.58865032,8.934e-05,2]
[351700971,1738757443687,-500.0,8.934e-05,2]
[351700973,1738757443697,-500.0,8.934e-05,2]
[351700975,1738757443706,-498.21212745,8.934e-05,2]
[351700977,1738757443715,-501.81392026,8.934e-05,2]
[351700979,1738757443725,-500.0,8.934e-05,2]
[351700981,1738757443734,-500.0,8.934e-05,2]
[351700983,1738757443743,-500.0,8.934e-05,2]
[351700985,1738757443753,-501.5873697,8.934e-05,2]
[351700987,1738757443762,-500.0,8.934e-05,2]
[351700989,1738757443772,-500.0,8.934e-05,2]
[351700990,1738757443781,-500.0,8.934e-05,2]
[351700991,1738757443791,-500.0,8.934e-05,2]
[351700992,1738757443801,-500.0,8.934e-05,2]
[351700993,1738757443811,-505.0675404,8.934e-05,2]
[351700994,1738757443820,-502.09441159,8.934e-05,2]
[351700995,1738757443829,-500.0,8.934e-05,2]
[351700996,1738757443839,-500.0,8.934e-05,2]
[351700997,1738757443848,-501.57625992,8.934e-05,2]
[351700998,1738757443857,-502.49072575,8.934e-05,2]
[351700999,1738757443866,-500.0,8.934e-05,2]
[351701000,1738757443876,-500.0,8.934e-05,2]
[351701001,1738757443886,-500.0,8.934e-05,2]
[351701002,1738757443899,-502.84510788,8.934e-05,2]
[351701003,1738757443908,-354.56507637,8.934e-05,2]
[351701004,1738757443917,-500.0,8.934e-05,2]
[351701005,1738757443927,-502.66270651,8.934e-05,2]
[351701006,1738757443937,-500.0,8.934e-05,2]
[351701007,1738757443947,-500.52525051,8.934e-05,2]
[351701009,1738757443957,-502.84561763,8.934e-05,2]
[351701010,1738757443971,-502.71715158,8.934e-05,2]
[351701011,1738757443981,-503.08533484,8.934e-05,2]
[351701012,1738757443991,-500.52982983,8.934e-05,2]
[351701013,1738757444000,-501.86266049,8.934e-05,2]
[351701014,1738757444010,-500.0,8.934e-05,2]
[351701015,1738757444019,-572.52853029,8.934e-05,2]
[351701016,1738757444029,-500.85483418,8.934e-05,2]
[351701017,1738757444039,-500.0,8.934e-05,2]
[351701018,1738757444048,-500.0,8.934e-05,2]
[351701019,1738757444060,-500.0,8.934e-05,2]
[351701020,1738757444069,-501.40143055,8.934e-05,2]
[351701021,1738757444079,-500.0,8.934e-05,2]
[351701022,1738757444089,-306.04638963,8.934e-05,2]
[351701023,1738757444099,-500.0,8.934e-05,2]
[351701024,1738757444108,-500.0,8.934e-05,2]
[351701025,1738757444118,-500.0,8.934e-05,2]
[351701026,1738757444127,-500.0,8.934e-05,2]
[351701027,1738757444137,-500.0,8.934e-05,2]
[351701028,1738757444146,-500.0,8.934e-05,2]
[351701029,1738757444155,-502.75750379,8.934e-05,2]
[351701030,1738757444164,-500.0,8.934e-05,2]
[351701031,1738757444176,-500.0,8.934e-05,2]
[351701032,1738757444186,-507.87033208,8.934e-05,2]
[351701033,1738757444196,-503.29870088,8.934e-05,2]
[351701034,1738757444205,-500.0,8.934e-05,2]
[351701035,1738757444214,-500.0,8.934e-05,2]
[351701036,1738757444224,-502.71582143,8.934e-05,2]
[351701037,1738757444234,-503.96658364,8.934e-05,2]
[351701038,1738757444244,-507.1151595,8.934e-05,2]
[351701039,1738757444253,-500.0,8.934e-05,2]
[351701040,1738757444262,-500.0,8.934e-05,2]
[351701041,1738757444272,-503.15255193,8.934e-05,2]
[351701042,1738757444282,-500.0,8.934e-05,2]
[351701043,1738757444291,-502.90554008,8.934e-05,2]
[351701044,1738757444300,-500.0,8.934e-05,2]
[351701045,1738757444310,-222.61911179,8.934e-05,2]
[351701046,1738757444319,-500.0,8.934e-05,2]
[351701047,1738757444329,-500.0,8.934e-05,2]
[351701048,1738757444338,-500.0,8.934e-05,2]
[351701049,1738757444348,-500.0,8.934e-05,2]
[351701050,1738757444357,-500.0,8.934e-05,2]
[351701051,1738757444366,-502.77285578,8.934e-05,2]
[351701052,1738757444375,-500.0,8.934e-05,2]
[351701053,1738757444384,-506.69166859,8.934e-05,2]
[351701054,1738757444394,-500.0,8.934e-05,2]
[351701055,1738757444403,-500.0,8.934e-05,2]
[351701056,1738757444412,-500.0,8.934e-05,2]
[351701057,1738757444422,-500.0,8.934e-05,2]
[351701058,1738757444431,-500.0,8.934e-05,2]
[351701059,1738757444441,-571.96,8.934e-05,2]
[351701060,1738757444450,-500.39313971,8.934e-05,2]
[351701061,1738757444460,-500.0,8.934e-05,2]
[351701062,1738757444469,-501.03152429,8.934e-05,2]
[351701071,1738757444653,-500.0,8.934e-05,2]
[351701072,1738757444663,-500.0,8.934e-05,2]
[351701073,1738757444672,-649.1,8.934e-05,2]
[351701074,1738757444682,-500.0,8.934e-05,2]
[351701075,1738757444692,-500.0,8.934e-05,2]
[351701076,1738757444702,-500.0,8.934e-05,2]
[351701077,1738757444711,-500.0,8.934e-05,2]
[351701078,1738757444720,-264.7,8.934e-05,2]
[351701079,1738757444730,-501.67171037,8.934e-05,2]
[351701080,1738757444740,-502.4459514,8.934e-05,2]
[351701081,1738757444749,-500.0,8.934e-05,2]
[351701082,1738757444759,-500.93464601,8.934e-05,2]
[351701083,1738757444769,-614.16,8.934e-05,2]
[351701084,1738757444778,-541.91191075,8.934e-05,2]
[351701085,1738757444787,-500.0,8.934e-05,2]
[351701086,1738757444796,-500.67023963,8.934e-05,2]
[351701087,1738757444806,-581.61838143,8.934e-05,2]
[351701088,1738757444816,-500.0,8.934e-05,2]
[351701089,1738757444825,-274.89920895,8.934e-05,2]
[351701090,1738757444835,-500.0,8.934e-05,2]
[351701091,1738757444844,-500.99901246,8.934e-05,2]
[351701092,1738757444854,-500.0,8.934e-05,2]
[351701093,1738757444863,-500.41383227,8.934e-05,2]
[351701094,1738757444872,-500.0,8.934e-05,2]
[351701095,1738757444882,-500.0,8.934e-05,2]
[351701096,1738757444894,-500.0,8.934e-05,2]
[351701097,1738757444903,-500.0,8.934e-05,2]
[351701098,1738757444912,-501.77268103,8.934e-05,2]